[Event "*** Titled Tuesday Blitz"]
[Site "Chess.com"]
[Date "2019.07.02"]
[Round "4"]
[White "Benjoneliere44"]
[Black "CalinGheorghiu"]
[Result "1/2-1/2"]
[WhiteElo "2440"]
[BlackElo "2291"]
[TimeControl "180+2"]
[EndTime "13:54:26 PDT"]
[Termination "Game drawn by repetition"]

1. d4 {[%clk 0:03:01.9]} 1... Nf6 {[%clk 0:03:00.6]} 2. Nf3 {[%clk 0:03:02.8]}
2... e6 {[%clk 0:03:01.8]} 3. Bg5 {[%clk 0:03:02.4]} 3... d5 {[%clk 0:03:02.5]}
4. e3 {[%clk 0:03:01.9]} 4... Be7 {[%clk 0:03:02.8]} 5. Bd3 {[%clk 0:03:02.3]}
5... O-O {[%clk 0:03:03.1]} 6. c3 {[%clk 0:03:02.6]} 6... c5 {[%clk 0:03:04]} 7.
Nbd2 {[%clk 0:03:03.2]} 7... Nc6 {[%clk 0:03:05]} 8. O-O {[%clk 0:03:03.1]} 8...
b6 {[%clk 0:03:06]} 9. Ne5 {[%clk 0:03:02.2]} 9... Nxe5 {[%clk 0:03:02.8]} 10.
dxe5 {[%clk 0:03:04.1]} 10... Nd7 {[%clk 0:03:02.9]} 11. Bxe7 {[%clk 0:03:00.1]}
11... Qxe7 {[%clk 0:03:04.8]} 12. f4 {[%clk 0:03:00.7]} 12... Bb7 {[%clk
0:03:05]} 13. Qh5 {[%clk 0:02:59.9]} 13... g6 {[%clk 0:02:58.9]} 14. Qh6 {[%clk
0:03:00.8]} 14... f6 {[%clk 0:02:50.6]} 15. exf6 {[%clk 0:02:58.3]} 15... Qxf6
{[%clk 0:02:51.5]} 16. Nf3 {[%clk 0:02:56.1]} 16... Rae8 {[%clk 0:02:51.7]} 17.
Bb5 {[%clk 0:02:51.1]} 17... Re7 {[%clk 0:02:44.1]} 18. Bxd7 {[%clk 0:02:46.6]}
18... Rxd7 {[%clk 0:02:46]} 19. Ne5 {[%clk 0:02:47.7]} 19... Rdd8 {[%clk
0:02:46.3]} 20. Qg5 {[%clk 0:02:35.8]} 20... Qxg5 {[%clk 0:02:26.8]} 21. fxg5
{[%clk 0:02:37.7]} 21... Rf5 {[%clk 0:02:25.3]} 22. Rxf5 {[%clk 0:02:32.7]}
22... exf5 {[%clk 0:02:25.8]} 23. Kf2 {[%clk 0:02:31]} 23... Kf8 {[%clk
0:02:20.8]} 24. Rd1 {[%clk 0:02:28.6]} 24... Ke7 {[%clk 0:02:21.6]} 25. Nd3
{[%clk 0:02:29.2]} 25... d4 {[%clk 0:02:20.7]} 26. exd4 {[%clk 0:02:24.1]} 26...
cxd4 {[%clk 0:02:21.3]} 27. Nf4 {[%clk 0:02:15.9]} 27... dxc3 {[%clk 0:02:16.9]}
28. Rxd8 {[%clk 0:02:16]} 28... Kxd8 {[%clk 0:02:17.9]} 29. bxc3 {[%clk
0:02:16.1]} 29... Ke7 {[%clk 0:02:17.6]} 30. Ke3 {[%clk 0:02:17.2]} 30... Kd6
{[%clk 0:02:17.5]} 31. Kd4 {[%clk 0:02:18]} 31... Be4 {[%clk 0:02:16.3]} 32. g3
{[%clk 0:02:15.4]} 32... a6 {[%clk 0:02:14]} 33. h4 {[%clk 0:02:10.8]} 33... Bf3
{[%clk 0:02:09.8]} 34. c4 {[%clk 0:02:02.5]} 34... Bd1 {[%clk 0:01:57.1]} 35.
Nd5 {[%clk 0:01:58.1]} 35... b5 {[%clk 0:01:53.9]} 36. cxb5 {[%clk 0:01:58.6]}
36... axb5 {[%clk 0:01:54]} 37. Nf6 {[%clk 0:01:59.7]} 37... b4 {[%clk
0:01:43.2]} 38. Nxh7 {[%clk 0:02:00.2]} 38... b3 {[%clk 0:01:04]} 39. axb3
{[%clk 0:01:58.3]} 39... Bxb3 {[%clk 0:01:05.9]} 40. Nf6 {[%clk 0:01:19.8]}
40... Bf7 {[%clk 0:01:04]} 41. Nh7 {[%clk 0:01:11.2]} 41... Ba2 {[%clk
0:01:00.7]} 42. Ke3 {[%clk 0:01:05.6]} 42... Ke5 {[%clk 0:00:59]} 43. Nf8 {[%clk
0:01:04.4]} 43... Bf7 {[%clk 0:00:59.3]} 44. Nd7+ {[%clk 0:01:05.2]} 44... Kd6
{[%clk 0:00:58.5]} 45. Nf6 {[%clk 0:00:53.6]} 45... Ke5 {[%clk 0:00:59.1]} 46.
Kf3 {[%clk 0:00:54.5]} 46... Bb3 {[%clk 0:00:56.6]} 47. Nd7+ {[%clk 0:00:52.9]}
47... Kd6 {[%clk 0:00:44.4]} 48. Nf8 {[%clk 0:00:53.8]} 48... Bf7 {[%clk
0:00:39.7]} 49. Kf4 {[%clk 0:00:54.5]} 49... Kd5 {[%clk 0:00:39.9]} 50. Nd7
{[%clk 0:00:54.1]} 50... Ke6 {[%clk 0:00:39.2]} 51. Ne5 {[%clk 0:00:53.7]} 51...
Be8 {[%clk 0:00:39.4]} 52. g4 {[%clk 0:00:30.6]} 52... fxg4 {[%clk 0:00:37.3]}
53. Nxg4 {[%clk 0:00:32.5]} 53... Bf7 {[%clk 0:00:35.5]} 54. Ne5 {[%clk
0:00:33.4]} 54... Be8 {[%clk 0:00:36.1]} 55. Ke4 {[%clk 0:00:34.5]} 55... Ba4
{[%clk 0:00:34.8]} 56. Kf4 {[%clk 0:00:28.9]} 56... Bc2 {[%clk 0:00:34.8]} 57.
Nc6 {[%clk 0:00:29.1]} 57... Bb1 {[%clk 0:00:33.2]} 58. Nd4+ {[%clk 0:00:27.6]}
58... Kd5 {[%clk 0:00:33.6]} 59. Nf3 {[%clk 0:00:17.7]} 59... Ke6 {[%clk
0:00:30]} 60. Nd4+ {[%clk 0:00:14.3]} 60... Kd5 {[%clk 0:00:29.7]} 61. Nb5
{[%clk 0:00:12.1]} 61... Ke6 {[%clk 0:00:29.7]} 62. Nc3 {[%clk 0:00:13.4]} 62...
Bc2 {[%clk 0:00:29.5]} 63. Ne2 {[%clk 0:00:12]} 63... Bb1 {[%clk 0:00:28.8]} 64.
Nd4+ {[%clk 0:00:12.4]} 1/2-1/2

[Event "*** Titled Tuesday Blitz"]
[Site "Chess.com"]
[Date "2019.07.02"]
[Round "4"]
[White "vova-79"]
[Black "KarstenHansch"]
[Result "1/2-1/2"]
[WhiteElo "2398"]
[BlackElo "2424"]
[TimeControl "180+2"]
[EndTime "13:54:29 PDT"]
[Termination "Game drawn by repetition"]

1. d4 {[%clk 0:03:01.9]} 1... Nf6 {[%clk 0:02:58.6]} 2. c4 {[%clk 0:03:02.3]}
2... g6 {[%clk 0:02:59.5]} 3. Nf3 {[%clk 0:03:01.5]} 3... Bg7 {[%clk 0:03:01]}
4. g3 {[%clk 0:03:01.8]} 4... O-O {[%clk 0:02:49.7]} 5. Bg2 {[%clk 0:03:02]}
5... d6 {[%clk 0:02:50.8]} 6. Nc3 {[%clk 0:03:01.7]} 6... Nc6 {[%clk 0:02:51.4]}
7. O-O {[%clk 0:03:01.5]} 7... a6 {[%clk 0:02:52.4]} 8. h3 {[%clk 0:02:50.8]}
8... Bd7 {[%clk 0:02:50.8]} 9. e4 {[%clk 0:02:44.9]} 9... e5 {[%clk 0:02:47]}
10. Be3 {[%clk 0:02:45.4]} 10... Qc8 {[%clk 0:02:45]} 11. Kh2 {[%clk 0:02:44.6]}
11... exd4 {[%clk 0:02:43.6]} 12. Nxd4 {[%clk 0:02:43.9]} 12... Nxd4 {[%clk
0:02:44.2]} 13. Bxd4 {[%clk 0:02:43.4]} 13... b5 {[%clk 0:02:41.7]} 14. c5
{[%clk 0:02:41.8]} 14... Re8 {[%clk 0:02:29.8]} 15. cxd6 {[%clk 0:02:36.5]}
15... cxd6 {[%clk 0:02:30.3]} 16. Rc1 {[%clk 0:02:36.6]} 16... Qd8 {[%clk
0:02:29.1]} 17. Re1 {[%clk 0:02:31.5]} 17... Rc8 {[%clk 0:02:29.5]} 18. Be3
{[%clk 0:02:30.9]} 18... Be6 {[%clk 0:02:29.9]} 19. Bf4 {[%clk 0:02:29.6]} 19...
b4 {[%clk 0:02:16.1]} 20. Na4 {[%clk 0:01:49.9]} 20... Qa5 {[%clk 0:02:05.2]}
21. Rxc8 {[%clk 0:01:41]} 21... Rxc8 {[%clk 0:02:02.4]} 22. b3 {[%clk
0:01:40.5]} 22... d5 {[%clk 0:01:56.7]} 23. e5 {[%clk 0:01:21.4]} 23... Nd7
{[%clk 0:01:56.2]} 24. Qd4 {[%clk 0:01:06.9]} 24... Nc5 {[%clk 0:01:21.8]} 25.
Bxd5 {[%clk 0:00:58.6]} 25... Nxa4 {[%clk 0:01:14.6]} 26. Bxe6 {[%clk
0:00:58.4]} 26... fxe6 {[%clk 0:01:15.5]} 27. bxa4 {[%clk 0:00:42.7]} 27... Qxa4
{[%clk 0:01:16.1]} 28. Re2 {[%clk 0:00:31.2]} 28... a5 {[%clk 0:01:12.7]} 29.
Qd6 {[%clk 0:00:29.1]} 29... Qc6 {[%clk 0:01:13]} 30. Qe7 {[%clk 0:00:24.7]}
30... Bf8 {[%clk 0:01:10.3]} 31. Qf6 {[%clk 0:00:22.7]} 31... Rc7 {[%clk
0:01:07.6]} 32. Rd2 {[%clk 0:00:21.5]} 32... Rf7 {[%clk 0:01:08.1]} 33. Qg5
{[%clk 0:00:20.2]} 33... Qf3 {[%clk 0:01:04.6]} 34. h4 {[%clk 0:00:20]} 34... a4
{[%clk 0:01:04.8]} 35. Kg1 {[%clk 0:00:18.5]} 35... b3 {[%clk 0:01:04.6]} 36.
axb3 {[%clk 0:00:18.5]} 36... axb3 {[%clk 0:01:05.3]} 37. Rb2 {[%clk 0:00:19.7]}
37... Qd1+ {[%clk 0:01:00.2]} 38. Kg2 {[%clk 0:00:19.5]} 38... Ba3 {[%clk
0:00:54.7]} 39. Rd2 {[%clk 0:00:17.9]} 39... Qb1 {[%clk 0:00:53.5]} 40. Qd8+
{[%clk 0:00:17.7]} 40... Bf8 {[%clk 0:00:53.9]} 41. Qb8 {[%clk 0:00:15.8]} 41...
Qe4+ {[%clk 0:00:53.1]} 42. Kh2 {[%clk 0:00:15.8]} 42... Qc4 {[%clk 0:00:51.2]}
43. Rb2 {[%clk 0:00:14.2]} 43... Rxf4 {[%clk 0:00:41.3]} 44. gxf4 {[%clk
0:00:13.9]} 44... Qxf4+ {[%clk 0:00:43.2]} 45. Kg2 {[%clk 0:00:14.8]} 45... Qg4+
{[%clk 0:00:43.9]} 46. Kf1 {[%clk 0:00:14.8]} 46... Qh3+ {[%clk 0:00:39.6]} 47.
Kg1 {[%clk 0:00:14.3]} 47... Qg4+ {[%clk 0:00:36.7]} 48. Kf1 {[%clk 0:00:14.7]}
48... Qh3+ {[%clk 0:00:30.3]} 49. Kg1 {[%clk 0:00:15]} 49... Qxh4 {[%clk
0:00:30.4]} 50. Rxb3 {[%clk 0:00:13.3]} 50... Qg4+ {[%clk 0:00:30.3]} 51. Rg3
{[%clk 0:00:13.6]} 51... Qd1+ {[%clk 0:00:30.9]} 52. Kg2 {[%clk 0:00:14.1]}
52... Qd4 {[%clk 0:00:26.5]} 53. Rf3 {[%clk 0:00:10.7]} 53... Qg4+ {[%clk
0:00:27.5]} 54. Rg3 {[%clk 0:00:11.3]} 54... Qe4+ {[%clk 0:00:28.6]} 55. Rf3
{[%clk 0:00:11.8]} 55... Qg4+ {[%clk 0:00:29.5]} 56. Rg3 {[%clk 0:00:12.3]}
56... Qe4+ {[%clk 0:00:30.4]} 57. Rf3 {[%clk 0:00:12.9]} 57... Qg4+ {[%clk
0:00:31.2]} 1/2-1/2

[Event "*** Titled Tuesday Blitz"]
[Site "Chess.com"]
[Date "2019.07.02"]
[Round "4"]
[White "MarcoRiehle"]
[Black "Qvalda"]
[Result "1-0"]
[WhiteElo "2706"]
[BlackElo "2497"]
[TimeControl "180+2"]
[EndTime "13:54:30 PDT"]
[Termination "MarcoRiehle won by resignation"]

1. e4 {[%clk 0:03:01.8]} 1... c5 {[%clk 0:02:59.2]} 2. Nf3 {[%clk 0:03:02.3]}
2... g6 {[%clk 0:02:59.1]} 3. d4 {[%clk 0:03:03.5]} 3... cxd4 {[%clk 0:03:01]}
4. Nxd4 {[%clk 0:03:05.4]} 4... Nc6 {[%clk 0:03:01.5]} 5. c4 {[%clk 0:03:06.5]}
5... Nf6 {[%clk 0:02:59.8]} 6. Nc3 {[%clk 0:03:05.7]} 6... Nxd4 {[%clk
0:03:01.1]} 7. Qxd4 {[%clk 0:03:07.6]} 7... d6 {[%clk 0:03:02.6]} 8. Be3 {[%clk
0:03:09.2]} 8... Bg7 {[%clk 0:03:04.1]} 9. f3 {[%clk 0:03:10.4]} 9... O-O {[%clk
0:03:04.8]} 10. Qd2 {[%clk 0:03:12]} 10... Be6 {[%clk 0:03:03.6]} 11. Rc1 {[%clk
0:03:12.3]} 11... a6 {[%clk 0:03:03.5]} 12. Be2 {[%clk 0:03:09]} 12... Qa5
{[%clk 0:03:04.3]} 13. O-O {[%clk 0:03:09.7]} 13... Rfc8 {[%clk 0:03:00.6]} 14.
b3 {[%clk 0:03:01.8]} 14... b5 {[%clk 0:02:55.5]} 15. Nd5 {[%clk 0:02:51.8]}
15... Qxd2 {[%clk 0:02:46.9]} 16. Bxd2 {[%clk 0:02:53.7]} 16... Nxd5 {[%clk
0:02:39.1]} 17. exd5 {[%clk 0:02:40.3]} 17... Bd4+ {[%clk 0:02:37.8]} 18. Kh1
{[%clk 0:02:41.7]} 18... Bd7 {[%clk 0:02:33.2]} 19. Rfe1 {[%clk 0:02:42]} 19...
f5 {[%clk 0:02:04.3]} 20. Bd3 {[%clk 0:02:39]} 20... Kf7 {[%clk 0:02:01.8]} 21.
g3 {[%clk 0:02:36]} 21... bxc4 {[%clk 0:01:53.2]} 22. Bxc4 {[%clk 0:02:34.5]}
22... Bb5 {[%clk 0:01:50.9]} 23. Bf1 {[%clk 0:02:11.8]} 23... Bxf1 {[%clk
0:01:25.9]} 24. Rxf1 {[%clk 0:02:11.2]} 24... Bb2 {[%clk 0:01:20.3]} 25. Rxc8
{[%clk 0:02:07.2]} 25... Rxc8 {[%clk 0:01:22.2]} 26. Be3 {[%clk 0:01:54.7]}
26... Rc3 {[%clk 0:00:52.3]} 27. Bb6 {[%clk 0:01:28.2]} 27... Rd3 {[%clk
0:00:43.3]} 28. Rf2 {[%clk 0:01:23.6]} 28... Bf6 {[%clk 0:00:34.8]} 29. a4
{[%clk 0:01:12.9]} 29... Rxd5 {[%clk 0:00:30]} 30. b4 {[%clk 0:01:13.3]} 30...
Rd1+ {[%clk 0:00:26.9]} 31. Kg2 {[%clk 0:01:14]} 31... Rb1 {[%clk 0:00:25.5]}
32. Ba5 {[%clk 0:01:10.3]} 32... Bc3 {[%clk 0:00:23.7]} 33. Re2 {[%clk
0:01:04.6]} 33... Bxb4 {[%clk 0:00:23.4]} 34. Bd8 {[%clk 0:01:06.1]} 34... d5
{[%clk 0:00:24.1]} 35. Bb6 {[%clk 0:01:03]} 35... Bd6 {[%clk 0:00:22.2]} 36. a5
{[%clk 0:01:01]} 36... Rc1 {[%clk 0:00:21.8]} 37. Rb2 {[%clk 0:01:00.1]} 37...
e5 {[%clk 0:00:21.1]} 38. Bd8 {[%clk 0:00:58.2]} 38... d4 {[%clk 0:00:19.9]} 39.
Rb6 {[%clk 0:00:59]} 39... Ke6 {[%clk 0:00:15.8]} 40. Rxa6 {[%clk 0:00:55]}
40... d3 {[%clk 0:00:17.2]} 41. Bg5 {[%clk 0:00:55.8]} 41... Rc2+ {[%clk
0:00:17.3]} 42. Kf1 {[%clk 0:00:56.8]} 42... Kd5 {[%clk 0:00:16.6]} 43. Rb6
{[%clk 0:00:41.1]} 43... Ra2 {[%clk 0:00:17.7]} 44. a6 {[%clk 0:00:42.2]} 44...
e4 {[%clk 0:00:19.1]} 45. fxe4+ {[%clk 0:00:41.6]} 45... fxe4 {[%clk 0:00:21]}
46. Be3 {[%clk 0:00:41.8]} 46... Ra1+ {[%clk 0:00:16.4]} 47. Kg2 {[%clk
0:00:42.7]} 47... Ra2+ {[%clk 0:00:16.3]} 48. Kf1 {[%clk 0:00:43.9]} 48... Ra1+
{[%clk 0:00:16.8]} 49. Kg2 {[%clk 0:00:45.3]} 49... h5 {[%clk 0:00:18.2]} 50. a7
{[%clk 0:00:45.9]} 50... Ra2+ {[%clk 0:00:18.9]} 51. Kf1 {[%clk 0:00:46.4]}
51... Rxa7 {[%clk 0:00:19.6]} 52. Rxd6+ {[%clk 0:00:46.6]} 52... Kxd6 {[%clk
0:00:19.5]} 53. Bxa7 {[%clk 0:00:48.2]} 53... Kd5 {[%clk 0:00:18.4]} 54. Ke1
{[%clk 0:00:47.2]} 54... Ke5 {[%clk 0:00:15.4]} 55. Be3 {[%clk 0:00:41.3]} 55...
Kf5 {[%clk 0:00:15.3]} 56. h3 {[%clk 0:00:41.8]} 56... Ke5 {[%clk 0:00:12.1]}
57. Kd2 {[%clk 0:00:42.9]} 57... Kd5 {[%clk 0:00:12.8]} 58. Kc3 {[%clk
0:00:44.3]} 58... Ke5 {[%clk 0:00:10.5]} 59. Kc4 {[%clk 0:00:44]} 59... Ke6
{[%clk 0:00:09.4]} 60. Kd4 {[%clk 0:00:44.3]} 60... Kf5 {[%clk 0:00:10.2]} 61.
Kd5 {[%clk 0:00:42.8]} 61... g5 {[%clk 0:00:08.3]} 62. Kd4 {[%clk 0:00:42.6]}
62... g4 {[%clk 0:00:05.9]} 63. h4 {[%clk 0:00:43.1]} 1-0

[Event "*** Titled Tuesday Blitz"]
[Site "Chess.com"]
[Date "2019.07.02"]
[Round "4"]
[White "Barrelius"]
[Black "Manukyan_Artak"]
[Result "1-0"]
[WhiteElo "2505"]
[BlackElo "2327"]
[TimeControl "180+2"]
[EndTime "13:54:31 PDT"]
[Termination "Barrelius won by resignation"]

1. Nf3 {[%clk 0:03:01.9]} 1... c5 {[%clk 0:03:00.3]} 2. c4 {[%clk 0:03:03]} 2...
Nc6 {[%clk 0:03:00.6]} 3. Nc3 {[%clk 0:03:04.1]} 3... g6 {[%clk 0:03:02]} 4. g3
{[%clk 0:03:04.9]} 4... Bg7 {[%clk 0:03:02.9]} 5. Bg2 {[%clk 0:03:06.4]} 5... e5
{[%clk 0:03:02.7]} 6. O-O {[%clk 0:03:06.8]} 6... f5 {[%clk 0:03:03.7]} 7. d3
{[%clk 0:03:06.6]} 7... Nf6 {[%clk 0:03:00.8]} 8. Bg5 {[%clk 0:03:07.6]} 8...
O-O {[%clk 0:03:00.8]} 9. Ne1 {[%clk 0:03:06.5]} 9... d6 {[%clk 0:03:01.3]} 10.
Nc2 {[%clk 0:03:07.2]} 10... Be6 {[%clk 0:03:00.1]} 11. Ne3 {[%clk 0:03:07.6]}
11... h6 {[%clk 0:02:57.8]} 12. Bxf6 {[%clk 0:03:08.8]} 12... Qxf6 {[%clk
0:02:56.4]} 13. Ned5 {[%clk 0:03:10.1]} 13... Qf7 {[%clk 0:02:57.6]} 14. a3
{[%clk 0:03:09]} 14... a5 {[%clk 0:02:57.6]} 15. e3 {[%clk 0:03:08.9]} 15... h5
{[%clk 0:02:57.2]} 16. h4 {[%clk 0:03:01]} 16... Bh6 {[%clk 0:02:37.9]} 17. Bf3
{[%clk 0:02:49.4]} 17... Kh7 {[%clk 0:02:26.6]} 18. Kg2 {[%clk 0:02:49.9]} 18...
Rg8 {[%clk 0:02:12.7]} 19. b4 {[%clk 0:02:37.8]} 19... axb4 {[%clk 0:02:10.7]}
20. axb4 {[%clk 0:02:38.8]} 20... Nxb4 {[%clk 0:02:09.6]} 21. Nxb4 {[%clk
0:02:37.8]} 21... cxb4 {[%clk 0:02:10]} 22. Nd5 {[%clk 0:02:39.1]} 22... f4
{[%clk 0:01:55.2]} 23. Rxa8 {[%clk 0:02:11.7]} 23... Rxa8 {[%clk 0:01:55.2]} 24.
Qd2 {[%clk 0:02:11.5]} 24... fxe3 {[%clk 0:01:48.1]} 25. fxe3 {[%clk 0:02:12.2]}
25... b3 {[%clk 0:01:44.4]} 26. Nc3 {[%clk 0:01:59.7]} 26... Qf5 {[%clk
0:01:26]} 27. Rh1 {[%clk 0:01:24.4]} 27... b2 {[%clk 0:00:44.3]} 28. Be4 {[%clk
0:01:15.2]} 28... Qf7 {[%clk 0:00:39.7]} 29. Qxb2 {[%clk 0:01:07]} 29... Bxe3
{[%clk 0:00:39.2]} 30. Qe2 {[%clk 0:01:06.5]} 30... Bh6 {[%clk 0:00:32]} 31. Rf1
{[%clk 0:00:55.2]} 31... Qg7 {[%clk 0:00:18.5]} 32. Qxh5 {[%clk 0:00:49.4]}
32... Ra3 {[%clk 0:00:18.2]} 33. Ne2 {[%clk 0:00:47.3]} 33... Ra2 {[%clk
0:00:18.5]} 34. Qf3 {[%clk 0:00:47]} 34... Qd7 {[%clk 0:00:18.3]} 35. Rf2 {[%clk
0:00:42.4]} 35... Bg4 {[%clk 0:00:18.1]} 36. Qf6 {[%clk 0:00:31.7]} 36... Qg7
{[%clk 0:00:15.6]} 37. Qxg7+ {[%clk 0:00:27.6]} 37... Kxg7 {[%clk 0:00:16.5]}
38. Nc3 {[%clk 0:00:21]} 38... Bh3+ {[%clk 0:00:12.5]} 39. Kf3 {[%clk
0:00:19.7]} 39... Bg4+ {[%clk 0:00:11.1]} 40. Kg2 {[%clk 0:00:20.8]} 40... Bh3+
{[%clk 0:00:12.3]} 41. Kg1 {[%clk 0:00:19.1]} 41... Ra1+ {[%clk 0:00:11.9]} 42.
Kh2 {[%clk 0:00:20.4]} 42... Bg4 {[%clk 0:00:12.7]} 43. Rb2 {[%clk 0:00:17.4]}
43... Be3 {[%clk 0:00:11.8]} 44. Rxb7+ {[%clk 0:00:17.8]} 44... Kh6 {[%clk
0:00:13.2]} 45. Rb2 {[%clk 0:00:17.1]} 45... Bd4 {[%clk 0:00:11.1]} 46. Rc2
{[%clk 0:00:17.8]} 46... Rf1 {[%clk 0:00:10.3]} 47. Nb5 {[%clk 0:00:14.6]} 47...
Bc5 {[%clk 0:00:11]} 48. Kg2 {[%clk 0:00:13.7]} 48... Rf7 {[%clk 0:00:11.7]} 49.
Bd5 {[%clk 0:00:12.5]} 49... Rf6 {[%clk 0:00:12.6]} 50. Nc3 {[%clk 0:00:11.9]}
50... g5 {[%clk 0:00:11.8]} 51. hxg5+ {[%clk 0:00:11.5]} 51... Kxg5 {[%clk
0:00:13.7]} 52. Ne4+ {[%clk 0:00:13.1]} 52... Kf5 {[%clk 0:00:13.9]} 53. Nxf6
{[%clk 0:00:14.2]} 53... Kxf6 {[%clk 0:00:15.8]} 54. Bf3 {[%clk 0:00:14.9]}
54... Bf5 {[%clk 0:00:16.7]} 55. Be4 {[%clk 0:00:16.2]} 55... Bg4 {[%clk
0:00:18.1]} 56. Ra2 {[%clk 0:00:17.2]} 56... Kg5 {[%clk 0:00:18.4]} 57. Ra8
{[%clk 0:00:16.7]} 57... Bd1 {[%clk 0:00:19.1]} 58. Rg8+ {[%clk 0:00:17]} 58...
Kf6 {[%clk 0:00:20.6]} 59. Rg6+ {[%clk 0:00:17.8]} 59... Ke7 {[%clk 0:00:21.8]}
60. g4 {[%clk 0:00:18.7]} 60... Be3 {[%clk 0:00:22.5]} 61. Kh3 {[%clk
0:00:17.8]} 61... Bf4 {[%clk 0:00:20.6]} 62. Kh4 {[%clk 0:00:18.7]} 62... Be2
{[%clk 0:00:21.5]} 63. Kh5 {[%clk 0:00:19.4]} 63... d5 {[%clk 0:00:22.8]} 64.
cxd5 {[%clk 0:00:20]} 1-0

[Event "*** Titled Tuesday Blitz"]
[Site "Chess.com"]
[Date "2019.07.02"]
[Round "4"]
[White "JonahWillow"]
[Black "Bryakin_Mikhail"]
[Result "1-0"]
[WhiteElo "2709"]
[BlackElo "2668"]
[TimeControl "180+2"]
[EndTime "13:54:35 PDT"]
[Termination "JonahWillow won by resignation"]

1. e4 {[%clk 0:03:01.9]} 1... c6 {[%clk 0:02:57.4]} 2. d4 {[%clk 0:03:02.9]}
2... d5 {[%clk 0:02:58.6]} 3. e5 {[%clk 0:03:04.4]} 3... Bf5 {[%clk 0:02:59.5]}
4. h4 {[%clk 0:03:05.3]} 4... h5 {[%clk 0:03:01]} 5. c4 {[%clk 0:03:06]} 5... e6
{[%clk 0:03:01.3]} 6. Nc3 {[%clk 0:03:07.2]} 6... Ne7 {[%clk 0:03:02.7]} 7. Nge2
{[%clk 0:03:08.1]} 7... dxc4 {[%clk 0:03:03.7]} 8. Ng3 {[%clk 0:03:09.2]} 8...
Bg6 {[%clk 0:03:04]} 9. Bxc4 {[%clk 0:03:09.3]} 9... Nf5 {[%clk 0:03:01]} 10.
Bg5 {[%clk 0:03:09]} 10... Qb6 {[%clk 0:02:58.7]} 11. Nxf5 {[%clk 0:03:05.7]}
11... Bxf5 {[%clk 0:02:59.4]} 12. O-O {[%clk 0:03:07.1]} 12... Nd7 {[%clk
0:02:59.4]} 13. Qd2 {[%clk 0:03:03.3]} 13... Be7 {[%clk 0:02:56.1]} 14. Bxe7
{[%clk 0:03:02]} 14... Kxe7 {[%clk 0:02:58]} 15. Bb3 {[%clk 0:02:41.9]} 15...
Kf8 {[%clk 0:02:53.4]} 16. Rad1 {[%clk 0:02:39.5]} 16... Qb4 {[%clk 0:02:49]}
17. Qg5 {[%clk 0:02:31]} 17... Qe7 {[%clk 0:02:49.7]} 18. Qg3 {[%clk 0:02:29.1]}
18... Nb6 {[%clk 0:02:42.7]} 19. Rfe1 {[%clk 0:02:25.7]} 19... Rd8 {[%clk
0:02:40.3]} 20. Qf4 {[%clk 0:02:17.9]} 20... Rg8 {[%clk 0:02:37]} 21. d5 {[%clk
0:01:53.2]} 21... cxd5 {[%clk 0:02:17.5]} 22. Bxd5 {[%clk 0:01:47.2]} 22... Bc2
{[%clk 0:01:27.2]} 23. Rd2 {[%clk 0:01:44.6]} 23... g5 {[%clk 0:01:15.8]} 24.
hxg5 {[%clk 0:01:41.1]} 24... Qxg5 {[%clk 0:01:07.4]} 25. Qb4+ {[%clk
0:01:40.5]} 25... Qe7 {[%clk 0:01:01.8]} 26. Qf4 {[%clk 0:01:22.9]} 26... Qg5
{[%clk 0:01:00.4]} 27. Qxg5 {[%clk 0:01:23.7]} 27... Rxg5 {[%clk 0:01:01]} 28.
Rxc2 {[%clk 0:01:25.6]} 28... Nxd5 {[%clk 0:01:02.3]} 29. Nxd5 {[%clk
0:01:25.1]} 29... Rxd5 {[%clk 0:01:03]} 30. Rc8+ {[%clk 0:01:25]} 30... Kg7
{[%clk 0:01:02.7]} 31. Rc7 {[%clk 0:01:26.9]} 31... Rb5 {[%clk 0:00:56.2]} 32.
b3 {[%clk 0:01:24.8]} 32... a5 {[%clk 0:00:50.8]} 33. Re4 {[%clk 0:01:19.2]}
33... Rf5 {[%clk 0:00:48.2]} 34. f4 {[%clk 0:01:16]} 34... b6 {[%clk 0:00:41.1]}
35. Rc6 {[%clk 0:01:11]} 35... Kg6 {[%clk 0:00:40.8]} 36. Kf2 {[%clk 0:01:10.6]}
36... Rd5 {[%clk 0:00:39.9]} 37. Ke3 {[%clk 0:01:08.3]} 37... b5 {[%clk
0:00:38.1]} 38. Rc8 {[%clk 0:01:08.2]} 38... Kg7 {[%clk 0:00:35.2]} 39. Ra8
{[%clk 0:01:05.7]} 39... b4 {[%clk 0:00:36]} 40. Rc4 {[%clk 0:01:01.5]} 40...
Rd7 {[%clk 0:00:11.1]} 41. Rxa5 {[%clk 0:00:57.3]} 41... Rb7 {[%clk 0:00:11.8]}
42. Ra4 {[%clk 0:00:56.2]} 42... h4 {[%clk 0:00:13]} 43. Raxb4 {[%clk
0:00:56.6]} 43... Rd7 {[%clk 0:00:14.6]} 44. Rd4 {[%clk 0:00:51.5]} 44... Rc7
{[%clk 0:00:15.9]} 45. Rbc4 {[%clk 0:00:52.7]} 45... Rb7 {[%clk 0:00:17.4]} 46.
Kf3 {[%clk 0:00:41.2]} 46... Rh5 {[%clk 0:00:17.7]} 47. Kg4 {[%clk 0:00:41.8]}
47... Rh8 {[%clk 0:00:18.9]} 48. Rd3 {[%clk 0:00:39]} 48... Kg6 {[%clk
0:00:18.3]} 49. Rh3 {[%clk 0:00:37.1]} 49... Rd8 {[%clk 0:00:19.6]} 50. Rxh4
{[%clk 0:00:33.5]} 50... Rd2 {[%clk 0:00:20.8]} 51. Kf3 {[%clk 0:00:21.1]} 51...
Rb8 {[%clk 0:00:19.6]} 52. Rg4+ {[%clk 0:00:21.6]} 52... Kh7 {[%clk 0:00:20.8]}
53. Rc7 {[%clk 0:00:18.2]} 53... Rf8 {[%clk 0:00:20.8]} 54. Ra7 {[%clk
0:00:19.3]} 54... Kh6 {[%clk 0:00:21.1]} 55. Ke3 {[%clk 0:00:19.3]} 55... Rb2
{[%clk 0:00:21.6]} 56. Rc7 {[%clk 0:00:17.9]} 56... Rb1 {[%clk 0:00:21.5]} 57.
g3 {[%clk 0:00:16.8]} 57... Re1+ {[%clk 0:00:22]} 58. Kf2 {[%clk 0:00:16.6]}
58... Rh1 {[%clk 0:00:23.2]} 59. Kg2 {[%clk 0:00:17.3]} 59... Ra1 {[%clk
0:00:23.9]} 60. Rc2 {[%clk 0:00:18]} 60... Rd8 {[%clk 0:00:25.2]} 61. Kf3 {[%clk
0:00:18.8]} 61... Rf1+ {[%clk 0:00:25.8]} 62. Rf2 {[%clk 0:00:19.5]} 62... Rh1
{[%clk 0:00:27]} 63. Rh4+ {[%clk 0:00:19.4]} 63... Rxh4 {[%clk 0:00:28.5]} 64.
gxh4 {[%clk 0:00:21.3]} 64... Kg6 {[%clk 0:00:30.4]} 65. Ke4 {[%clk 0:00:22.2]}
65... Rd1 {[%clk 0:00:29.7]} 66. a4 {[%clk 0:00:22.6]} 66... Re1+ {[%clk
0:00:30.5]} 67. Kd4 {[%clk 0:00:20.4]} 67... Kf5 {[%clk 0:00:32.4]} 68. a5
{[%clk 0:00:20.4]} 68... Ra1 {[%clk 0:00:33.1]} 69. b4 {[%clk 0:00:21.8]} 1-0